bitfinex-derivatives/quotes_BTCF0:USTF0_20250517
["timestamp","ask_amount","ask_price","bid_price","bid_amount"]
[1747445805068,0.8938119,102980.0,102970.0,0.0948]
[1747445805272,0.9566119,102980.0,102970.0,0.0948]
[1747445806081,0.9566119,102980.0,102970.0,0.0958]
[1747445806583,1.62989507,102980.0,102970.0,0.0311]
[1747445806979,1.72700707,102980.0,102970.0,0.001]
[1747445807180,1.90700707,102980.0,102970.0,0.001]
[1747445807783,1.4073319,102980.0,102970.0,0.39763397]
[1747445807973,1.1585319,102980.0,102970.0,0.49253397]
[1747445808173,1.2273319,102980.0,102970.0,0.49253397]
[1747445808473,1.2293319,102980.0,102970.0,0.49253397]
[1747445808679,0.9805319,102980.0,102970.0,0.49253397]
[1747445808882,1.2292919,102980.0,102970.0,0.49153397]
[1747445809185,1.2332919,102980.0,102970.0,0.49153397]
[1747445809485,1.3192919,102980.0,102970.0,0.36153397]
[1747445809680,1.3192919,102980.0,102970.0,0.16738317]
[1747445809983,1.3172919,102980.0,102970.0,0.0949]
[1747445811483,1.3172119,102980.0,102970.0,0.0949]
[1747445812486,1.0685319,102980.0,102970.0,0.36153397]
[1747445812683,1.0685319,102980.0,102970.0,0.70153397]
[1747445812879,0.9476319,102980.0,102970.0,0.70153397]
[1747445813691,1.1962319,102980.0,102970.0,0.70153397]
[1747445813890,1.2280319,102980.0,102970.0,0.31738317]
[1747445814479,1.2280319,102980.0,102970.0,0.51153397]
[1747445815492,1.2279919,102980.0,102970.0,0.51153397]
[1747445816192,0.8671919,102980.0,102970.0,0.51153397]
[1747445817178,0.5868319,102980.0,102970.0,0.51153397]
[1747445817488,0.5868319,102980.0,102970.0,0.73153397]
[1747445817489,0.4426119,102980.0,102970.0,0.73153397]
[1747445818190,0.4426119,102980.0,102970.0,0.91153397]
[1747445818885,0.1941319,102980.0,102970.0,0.91153397]
[1747445819085,0.4425319,102980.0,102970.0,0.54153397]
[1747445819989,0.4425319,102980.0,102970.0,0.4690508]
[1747445820187,0.8033319,102980.0,102970.0,0.2749]
[1747445820493,1.32831507,102980.0,102970.0,0.2122]
[1747445820791,1.32831507,102980.0,102970.0,0.18]
[1747445821186,0.1941508,102970.0,102960.0,0.0625]
[1747445821392,0.8959508,102970.0,102960.0,0.0625]
[1747445821592,1.21723397,102970.0,102960.0,0.0305]
[1747445821789,0.1941696,102960.0,102950.0,0.0647426]
[1747445821991,0.1941885,102950.0,102940.0,0.00145696]
[1747445822290,1.05817167,102950.0,102940.0,0.00145696]
[1747445822687,1.30697167,102950.0,102940.0,0.00145696]
[1747445822889,1.2344885,102950.0,102940.0,0.07394013]
[1747445823083,1.2344885,102950.0,102940.0,0.03355696]
[1747445823392,1.2339285,102950.0,102940.0,0.32856426]
[1747445823586,1.2339285,102950.0,102940.0,0.13735696]
[1747445823989,1.2339285,102950.0,102940.0,0.06735696]
[1747445824688,1.30641167,102950.0,102940.0,0.003]
[1747445825090,1.48641167,102950.0,102940.0,0.003]
[1747445825391,1.73517167,102950.0,102940.0,0.003]
[1747445825588,1.6626885,102950.0,102940.0,0.003]
[1747445825786,0.8556885,102950.0,102940.0,0.63059047]
[1747445825988,0.4041885,102950.0,102940.0,0.66369047]
[1747445826193,0.1941885,102950.0,102940.0,1.20449047]
[1747445826894,0.9811838,102960.0,102950.0,0.1941885]
[1747445827096,0.6203838,102960.0,102950.0,0.70117167]
[1747445827888,0.3722238,102960.0,102950.0,0.70117167]
[1747445828083,0.002,102960.0,102950.0,0.88117167]
[1747445828302,0.1961696,102960.0,102950.0,1.65887167]
[1747445828796,0.002,102960.0,102950.0,1.65887167]
[1747445829198,0.1961696,102960.0,102950.0,1.65887167]
[1747445829494,0.002,102960.0,102950.0,1.65887167]
[1747445829694,0.002,102960.0,102950.0,1.98015484]
[1747445829899,0.002,102960.0,102950.0,2.32728284]
[1747445830199,0.002,102960.0,102950.0,2.58028284]
[1747445830990,0.002,102960.0,102950.0,2.50779967]
[1747445831197,0.1961696,102960.0,102950.0,1.80107167]
[1747445831499,0.1961696,102960.0,102950.0,1.60688317]
[1747445831795,0.2287696,102960.0,102950.0,1.1924]
[1747445832105,0.8690296,102960.0,102950.0,1.2095885]
[1747445832299,0.8690296,102960.0,102950.0,1.0144]
[1747445832497,0.8690296,102960.0,102950.0,0.5164]
[1747445832692,1.26151277,102960.0,102950.0,0.005]
[1747445832996,1.2199296,102960.0,102950.0,0.003]
[1747445833192,0.1941885,102950.0,102940.0,0.0609]
[1747445833400,0.7196885,102950.0,102940.0,0.0307]
[1747445833700,0.1942073,102940.0,102930.0,0.38046267]
[1747445833893,0.6197073,102940.0,102930.0,0.41116267]
[1747445834996,0.5876073,102940.0,102930.0,0.44116267]
[1747445835301,0.2268073,102940.0,102930.0,0.72116267]
[1747445835707,0.2268073,102940.0,102930.0,0.72416267]
[1747445836000,0.9485345,102950.0,102940.0,0.1942073]
[1747445836200,0.7336545,102950.0,102940.0,0.46019047]
[1747445836502,0.7668545,102950.0,102940.0,0.46019047]
[1747445836698,0.7668545,102950.0,102940.0,0.0635]
[1747445836902,0.7668545,102950.0,102940.0,0.2577073]
[1747445837109,0.8968545,102950.0,102940.0,0.2577073]
[1747445837405,0.1942073,102940.0,102930.0,0.30469657]
[1747445837709,0.6205073,102940.0,102930.0,0.36709657]
[1747445837903,0.6205073,102940.0,102930.0,0.36409657]
[1747445838404,0.2597073,102940.0,102930.0,0.36409657]
[1747445838600,0.2597073,102940.0,102930.0,0.36709657]
[1747445838801,0.2597073,102940.0,102930.0,0.36409657]
[1747445839906,0.2597073,102940.0,102930.0,0.36709657]
[1747445840206,0.2265073,102940.0,102930.0,0.70709657]
[1747445841108,0.1942073,102940.0,102930.0,0.77957974]
[1747445841300,1.0108732,102950.0,102940.0,0.1942073]
[1747445841500,1.0108732,102950.0,102940.0,0.65039047]
[1747445841805,0.6500732,102950.0,102940.0,0.65039047]
[1747445842399,0.7631532,102950.0,102940.0,0.65039047]
[1747445842609,0.4023532,102950.0,102940.0,0.47039047]
[1747445842807,0.4023532,102950.0,102940.0,0.47339047]
[1747445843202,0.7631532,102950.0,102940.0,0.4009073]
[1747445843405,0.7631532,102950.0,102940.0,0.143]
[1747445843600,1.20563637,102950.0,102940.0,0.143]
[1747445843800,1.20563637,102950.0,102940.0,0.003]
[1747445845205,1.38563637,102950.0,102940.0,0.003]
[1747445846908,1.3131532,102950.0,102940.0,0.003]
[1747445847111,1.38563637,102950.0,102940.0,0.003]
[1747445848812,1.3131532,102950.0,102940.0,0.003]
[1747445849015,1.3131532,102950.0,102940.0,0.3072073]
[1747445849197,1.6283932,102950.0,102940.0,0.44349047]
[1747445849398,1.6283932,102950.0,102940.0,0.1768]
[1747445850016,1.6283932,102950.0,102940.0,0.0668]
[1747445850309,1.6283932,102950.0,102940.0,0.0356]
[1747445850523,1.6283932,102950.0,102940.0,0.2298073]
[1747445850714,1.6283932,102950.0,102940.0,0.0356]
[1747445850900,1.6283932,102950.0,102940.0,0.2298073]
[1747445851095,1.6283932,102950.0,102940.0,0.0668]
[1747445851510,1.6283932,102950.0,102940.0,0.0356]
[1747445852409,1.6283932,102950.0,102940.0,0.0685]
[1747445852710,1.1331532,102950.0,102940.0,0.0685]
[1747445852898,1.6283132,102950.0,102940.0,0.0685]
[1747445853712,1.6283132,102950.0,102940.0,0.0356]
[1747445857314,1.70079637,102950.0,102940.0,0.003]
[1747445859219,1.88079637,102950.0,102940.0,0.003]
[1747445860314,0.1942451,102920.0,102910.0,0.00194335]
[1747445860517,0.8022051,102920.0,102910.0,0.39880725]
[1747445860825,0.8643051,102920.0,102910.0,0.28880725]
[1747445861209,0.8643051,102920.0,102910.0,0.27454335]
[1747445861408,1.27169061,102920.0,102910.0,0.21964335]
[1747445861606,1.30479061,102920.0,102910.0,0.21964335]
[1747445861914,1.31474537,102920.0,102910.0,0.21964335]
[1747445862112,1.31474537,102920.0,102910.0,0.01494335]
[1747445863015,1.0522622,102920.0,102910.0,0.01494335]
[1747445863216,1.0522622,102920.0,102910.0,0.07824335]
[1747445863411,1.2999822,102920.0,102910.0,0.07824335]
[1747445863718,1.2999822,102920.0,102910.0,0.08368551]
[1747445864118,1.57246537,102920.0,102910.0,0.02038551]
[1747445864315,1.57246537,102920.0,102910.0,0.01438551]
[1747445864518,1.57646537,102920.0,102910.0,0.00838551]
[1747445864718,1.57646537,102920.0,102910.0,0.03314335]
[1747445865426,0.9369022,102920.0,102910.0,0.03314335]
[1747445865608,0.6891022,102920.0,102910.0,0.06364335]
[1747445865815,0.9361022,102920.0,102910.0,0.06364335]
[1747445866118,1.2361022,102920.0,102910.0,0.06364335]
[1747445866314,0.9261022,102920.0,102910.0,0.06364335]
[1747445866621,0.9361022,102920.0,102910.0,0.06364335]
[1747445866822,1.2761022,102920.0,102910.0,0.06364335]
[1747445869123,0.60674744,102920.0,102910.0,0.41039042]
[1747445869519,0.85366744,102920.0,102910.0,0.41039042]
[1747445869821,0.85366744,102920.0,102910.0,0.41583258]
[1747445870022,1.24615061,102920.0,102910.0,0.06908551]
[1747445870218,1.30965061,102920.0,102910.0,0.06908551]
[1747445870826,1.30965061,102920.0,102910.0,0.06364335]
[1747445872431,1.23716744,102920.0,102910.0,0.06364335]
[1747445874627,1.24713945,102920.0,102910.0,0.06364335]
[1747445877933,1.24713945,102920.0,102910.0,0.06908551]
[1747445878928,1.24713945,102920.0,102910.0,0.06364335]
[1747445879431,0.99024744,102920.0,102910.0,0.25790725]
[1747445879630,0.57494744,102920.0,102910.0,0.67039042]
[1747445879935,0.82154744,102920.0,102910.0,0.67583258]
[1747445880140,0.85174744,102920.0,102910.0,0.67583258]
[1747445880330,0.85174744,102920.0,102910.0,0.78334941]
[1747445880634,0.85174744,102920.0,102910.0,0.85583258]
[1747445880835,0.85174744,102920.0,102910.0,0.44334941]
[1747445881035,0.85174744,102920.0,102910.0,0.51790725]
[1747445881836,0.86149407,102920.0,102910.0,0.51790725]
[1747445882940,0.89189407,102920.0,102910.0,0.51790725]
[1747445883138,0.27474744,102920.0,102910.0,0.59039042]
[1747445883341,0.49086744,102920.0,102910.0,0.64790725]
[1747445883541,0.24434744,102920.0,102910.0,0.64790725]
[1747445883745,0.27474744,102920.0,102910.0,0.64790725]
[1747445884052,0.63554744,102920.0,102910.0,0.64790725]
[1747445884253,0.63554744,102920.0,102910.0,0.43790725]
[1747445884444,1.07803061,102920.0,102910.0,0.24364335]
[1747445884752,1.35641061,102920.0,102910.0,0.24364335]
[1747445885145,1.35641061,102920.0,102910.0,0.06364335]
[1747445885344,1.36596733,102920.0,102910.0,0.06364335]
[1747445886350,1.36596733,102920.0,102910.0,0.03314335]
[1747445886943,1.36596733,102920.0,102910.0,0.00294335]
[1747445890153,1.29348416,102920.0,102910.0,0.00294335]
[1747445890354,1.36596733,102920.0,102910.0,0.03484335]
[1747445890548,1.61232733,102920.0,102910.0,0.03484335]
[1747445891852,1.61232733,102920.0,102910.0,0.00294335]
[1747445896147,1.61232733,102920.0,102910.0,0.03334335]
[1747445896349,1.53972416,102920.0,102910.0,0.03334335]
[1747445896550,1.53972416,102920.0,102910.0,0.25790725]
[1747445896754,0.49058744,102920.0,102910.0,0.57039042]
[1747445897050,0.49058744,102920.0,102910.0,0.75039042]
[1747445897958,0.85138744,102920.0,102910.0,0.55612652]
[1747445898259,0.88338744,102920.0,102910.0,0.48364335]
[1747445899464,0.88338744,102920.0,102910.0,0.67790725]
[1747445899761,0.52258744,102920.0,102910.0,0.62520725]
[1747445900062,0.88338744,102920.0,102910.0,0.62520725]
[1747445900263,0.88538744,102920.0,102910.0,0.62520725]
[1747445902160,0.41290234,102920.0,102910.0,0.69769042]
[1747445902368,0.21614744,102920.0,102910.0,0.69769042]
[1747445902866,0.57694744,102920.0,102910.0,0.62520725]
[1747445903062,0.60964744,102920.0,102910.0,0.45650725]
[1747445903367,0.66964744,102920.0,102910.0,0.52899042]
[1747445904058,0.70034744,102920.0,102910.0,0.52899042]
[1747445905157,0.33954744,102920.0,102910.0,0.52899042]
[1747445905363,0.70034744,102920.0,102910.0,0.52899042]
[1747445905566,0.70034744,102920.0,102910.0,0.45650725]
[1747445905760,0.71283061,102920.0,102910.0,0.26224335]
[1747445906059,0.68034744,102920.0,102910.0,0.04224335]
[1747445906564,0.71134744,102920.0,102910.0,0.04224335]
[1747445908062,0.1942639,102910.0,102900.0,0.86222567]
[1747445908367,0.6157639,102910.0,102900.0,0.8172425]
[1747445909064,0.2549639,102910.0,102900.0,0.8172425]
[1747445909260,0.6167639,102910.0,102900.0,0.8172425]
[1747445909563,0.2569639,102910.0,102900.0,0.8172425]
[1747445909764,0.6177639,102910.0,102900.0,0.8172425]
[1747445909960,0.2569639,102910.0,102900.0,0.8172425]
[1747445910156,0.6177639,102910.0,102900.0,0.388672]
[1747445912162,0.8636439,102910.0,102900.0,0.388672]
[1747445912754,0.8636439,102910.0,102900.0,0.3886828]
[1747445913166,0.8636039,102910.0,102900.0,0.3886828]
[1747445915770,0.2569639,102910.0,102900.0,0.3886828]
[1747445916067,0.2569639,102910.0,102900.0,1.00116597]
[1747445916068,0.8328639,102910.0,102900.0,1.00116597]
[1747445916365,0.2262639,102910.0,102900.0,1.00133063]
[1747445916570,0.2262639,102910.0,102900.0,1.00677279]
[1747445916966,0.002,102910.0,102900.0,1.44005596]
[1747445917167,0.002,102910.0,102900.0,2.10307596]
[1747445917363,0.002,102910.0,102900.0,2.20025196]
[1747445917670,0.002,102910.0,102900.0,2.0976338]
[1747445918156,0.001,102910.0,102900.0,2.0976338]
[1747445918362,0.3419392,102920.0,102910.0,0.1942639]
[1747445918564,0.3738392,102920.0,102910.0,0.63924707]
[1747445918870,0.2767138,102920.0,102910.0,0.63924707]
[1747445919274,0.2767138,102920.0,102910.0,0.81924707]
[1747445919667,0.2767138,102920.0,102910.0,0.82124707]
[1747445923278,0.2767138,102920.0,102910.0,1.23814707]
[1747445924577,0.0339,102920.0,102910.0,1.23814707]
[1747445924776,0.002,102920.0,102910.0,1.59894707]
[1747445925072,0.002,102920.0,102910.0,2.34506707]
[1747445925274,0.196245,102920.0,102910.0,2.34506707]
[1747445925774,0.228745,102920.0,102910.0,2.34506707]
[1747445927679,0.002,102920.0,102910.0,2.3546781]
[1747445927976,0.8976499,102940.0,102930.0,0.1942262]
[1747445928274,1.0080051,102940.0,102930.0,0.54670937]
[1747445928579,1.0080051,102940.0,102930.0,0.60890937]
[1747445928876,1.02257654,102940.0,102930.0,0.60890937]
[1747445929074,1.02257654,102940.0,102930.0,0.78890937]
[1747445929284,1.02557654,102940.0,102930.0,0.78890937]
[1747445930277,1.02757654,102940.0,102930.0,0.78890937]
[1747445930470,1.02757654,102940.0,102930.0,0.46]
[1747445930669,1.16005971,102940.0,102930.0,0.19]
[1747445931175,0.1942262,102930.0,102920.0,0.4169]
[1747445931374,0.194245,102920.0,102910.0,0.03444335]
[1747445931573,0.619045,102920.0,102910.0,0.37870725]
[1747445931772,0.699045,102920.0,102910.0,0.37870725]
[1747445932774,0.699045,102920.0,102910.0,0.34620725]
[1747445932974,0.699045,102920.0,102910.0,0.34720725]
[1747445933682,0.699045,102920.0,102910.0,0.19720725]
[1747445934479,1.01884817,102920.0,102910.0,0.00194335]
[1747445934672,1.30184817,102920.0,102910.0,0.00194335]
[1747445935182,1.48184817,102920.0,102910.0,0.00194335]
[1747445936479,0.26674707,102910.0,102900.0,0.10016466]
[1747445936674,1.03474707,102910.0,102900.0,0.10016466]
[1747445936870,1.28018707,102910.0,102900.0,0.10016466]
[1747445937271,1.46018707,102910.0,102900.0,0.10016466]
[1747445937779,1.46218707,102910.0,102900.0,0.10016466]
[1747445938876,1.55936307,102910.0,102900.0,0.02110688]
[1747445940784,1.80936307,102910.0,102900.0,8e-08]
[1747445941282,1.55936307,102910.0,102900.0,8e-08]
[1747445941484,1.31392307,102910.0,102900.0,8e-08]
[1747445941675,1.80456307,102910.0,102900.0,8e-08]
[1747445942779,1.1442639,102910.0,102900.0,8e-08]
[1747445942980,1.6349039,102910.0,102900.0,8e-08]
[1747445943175,1.1442639,102910.0,102900.0,8e-08]
[1747445943371,1.6349039,102910.0,102900.0,8e-08]
[1747445943677,1.70738707,102910.0,102900.0,8e-08]
[1747445945281,1.6349039,102910.0,102900.0,8e-08]
[1747445945981,1.70734707,102910.0,102900.0,8e-08]
[1747445946181,1.52734707,102910.0,102900.0,8e-08]
[1747445946879,1.4548639,102910.0,102900.0,8e-08]
[1747445947478,1.52734707,102910.0,102900.0,8e-08]
[1747445948077,1.4548239,102910.0,102900.0,8e-08]
[1747445948285,1.2097439,102910.0,102900.0,8e-08]
[1747445948486,1.4548239,102910.0,102900.0,8e-08]
[1747445949686,1.4547839,102910.0,102900.0,8e-08]
[1747445950982,0.9329639,102910.0,102900.0,0.53676605]
[1747445951178,0.5721639,102910.0,102900.0,0.59956605]
[1747445951379,0.0346,102910.0,102900.0,0.96036605]
[1747445951678,0.2288639,102910.0,102900.0,0.96036605]
[1747445951880,0.002,102910.0,102900.0,1.69974922]
[1747445952081,0.002,102920.0,102910.0,0.1942639]
[1747445952284,0.002,102920.0,102910.0,1.01054707]
[1747445952488,0.002,102920.0,102910.0,1.35771507]
[1747445952989,0.65124904,102940.0,102930.0,0.1942262]
[1747445953190,0.65124904,102940.0,102930.0,0.61670937]
[1747445953389,0.29044904,102940.0,102930.0,0.68020937]
[1747445953887,0.20879544,102940.0,102930.0,1.11349254]
[1747445954087,1.0098324,102950.0,102940.0,0.1942073]
[1747445954387,0.2252037,102950.0,102940.0,0.51019047]
[1747445954581,0.2252037,102950.0,102940.0,1.04099047]
[1747445954979,0.23957841,102950.0,102940.0,1.04099047]
[1747445955180,0.23957841,102950.0,102940.0,1.22099047]
[1747445955381,0.20957841,102950.0,102940.0,1.22099047]
[1747445956191,0.20957841,102950.0,102940.0,1.1809073]
[1747445956491,0.20957841,102950.0,102940.0,0.89259047]
[1747445956692,0.65307841,102950.0,102940.0,0.4801071]
[1747445957082,0.65307841,102950.0,102940.0,0.3001071]
[1747445959088,0.65307841,102950.0,102940.0,0.1059]
[1747445959283,0.65307841,102950.0,102940.0,0.2901072]
[1747445959284,0.63307841,102950.0,102940.0,0.2901072]
[1747445961691,0.0485532,102940.0,102920.0,0.8262588]
[1747445961898,0.7311718,102940.0,102930.0,0.2565259]
[1747445962197,0.7797276,102940.0,102930.0,0.2565259]
[1747445962493,0.8116276,102940.0,102930.0,0.2565259]
[1747445963391,0.8316276,102940.0,102930.0,0.32900907]
[1747445963688,0.7830718,102940.0,102930.0,0.32900907]
[1747445963890,0.7511718,102940.0,102930.0,0.32900907]
[1747445964089,0.321816,102940.0,102930.0,0.68900907]
[1747445964886,0.321816,102940.0,102930.0,0.69000907]
[1747445965486,0.322816,102940.0,102930.0,0.68900907]
[1747445966296,0.322816,102940.0,102930.0,0.85900907]
[1747445967391,0.195207,102940.0,102930.0,0.93149224]
[1747445967692,0.195207,102940.0,102930.0,0.85900907]
[1747445968698,0.194207,102940.0,102930.0,1.36000907]
[1747445968993,0.225907,102940.0,102930.0,1.36000907]
[1747445969292,0.225907,102940.0,102930.0,0.9385259]
[1747445969500,0.646707,102940.0,102930.0,0.9985259]
[1747445969797,0.678907,102940.0,102930.0,0.9985259]
[1747445970188,0.678907,102940.0,102930.0,0.8185259]
[1747445970385,1.07139017,102940.0,102930.0,0.502]
[1747445970689,1.19943817,102940.0,102930.0,0.5]
[1747445970888,1.20343817,102940.0,102930.0,0.5]
[1747445971095,0.1942469,102920.0,102910.0,0.19620915]
[1747445971290,0.8295269,102920.0,102910.0,0.00194335]
[1747445971491,0.8924269,102920.0,102910.0,0.00194335]
[1747445972193,0.8924269,102920.0,102910.0,0.19620915]
[1747445972890,0.8624269,102920.0,102910.0,0.22890915]
[1747445973086,0.8624269,102920.0,102910.0,0.26150915]
[1747445973290,0.8644269,102920.0,102910.0,0.26150915]
[1747445973498,0.8664269,102920.0,102910.0,0.26150915]
[1747445974601,0.5056269,102920.0,102910.0,0.26150915]
[1747445974991,0.5056269,102920.0,102910.0,0.55399232]
[1747445975388,0.2611469,102920.0,102910.0,0.55399232]
[1747445975789,0.0357,102920.0,102910.0,0.55399232]
[1747445976006,0.0357,102920.0,102910.0,0.91479232]
[1747445976199,0.004,102920.0,102910.0,1.09479232]
[1747445976392,0.002,102920.0,102910.0,1.09479232]
[1747445977198,0.3240441,102930.0,102920.0,0.1942469]
[1747445977404,0.3240441,102930.0,102920.0,0.71063007]
[1747445977797,0.2269291,102930.0,102920.0,0.71063007]
[1747445978205,0.2269291,102930.0,102920.0,0.89063007]
[1747445979707,0.2269291,102930.0,102920.0,0.89163007]
[1747445980196,0.2269291,102930.0,102920.0,0.89263007]
[1747445980902,0.74663391,102950.0,102920.0,1.89044634]
[1747445981100,0.2243091,102940.0,102930.0,0.812144]
[1747445981401,0.2243091,102940.0,102930.0,0.801344]
[1747445981604,0.2243091,102940.0,102930.0,1.23462717]
[1747445981805,0.2243091,102940.0,102930.0,0.87382717]
[1747445981998,0.2558091,102940.0,102930.0,0.87382717]
[1747445982197,0.2558091,102940.0,102930.0,1.05382717]
[1747445983306,0.2568091,102940.0,102930.0,0.9327885]
[1747445983507,0.6176091,102940.0,102930.0,1.00527167]
[1747445983706,0.6176091,102940.0,102930.0,0.5542347]
[1747445983894,0.6176091,102940.0,102930.0,0.5342347]
[1747445984093,0.6176091,102940.0,102930.0,0.5025347]
[1747445984407,0.6176091,102940.0,102930.0,0.3225347]
[1747445985403,0.6176091,102940.0,102930.0,0.2913347]
[1747445986102,0.6176091,102940.0,102930.0,0.78921787]
[1747445986299,0.0311,102940.0,102930.0,1.22250104]
[1747445986497,0.2253091,102940.0,102930.0,1.22250104]
[1747445986910,0.2253091,102940.0,102930.0,1.15001787]
[1747445987209,0.2253091,102940.0,102930.0,1.33001787]
[1747445987512,0.0311,102940.0,102930.0,1.33001787]
[1747445987809,0.2253091,102940.0,102930.0,1.33001787]
[1747445988009,0.2243091,102940.0,102930.0,1.33101787]
[1747445988213,0.2243091,102940.0,102930.0,1.33401787]
[1747445989011,0.2243091,102940.0,102930.0,1.57869787]
[1747445989410,0.2243091,102940.0,102930.0,1.5032147]
[1747445989711,0.2243091,102940.0,102930.0,1.57669787]
[1747445990501,0.2243091,102940.0,102930.0,1.21589787]
[1747445990708,0.2243091,102940.0,102930.0,1.57669787]
[1747445991608,0.2243091,102940.0,102930.0,1.21589787]
[1747445991905,0.2243091,102940.0,102930.0,1.57669787]
[1747445992112,0.2562091,102940.0,102930.0,1.57669787]
[1747445992408,0.2562091,102940.0,102930.0,1.21589787]
[1747445992609,0.2562091,102940.0,102930.0,1.57669787]
[1747445995807,0.2562091,102940.0,102930.0,1.21589787]
[1747445996305,0.2562091,102940.0,102930.0,1.39669787]
[1747445996706,0.2562091,102940.0,102930.0,1.3242147]
[1747445996907,0.2562091,102940.0,102930.0,1.39669787]
[1747445997514,0.2562091,102940.0,102930.0,1.03589787]
[1747445998016,0.6570091,102940.0,102930.0,0.196228]
[1747445998408,0.9008891,102940.0,102930.0,0.26871117]
[1747445998603,0.9008891,102940.0,102930.0,0.196228]
[1747445999203,0.9008891,102940.0,102930.0,0.002]
[1747445999400,1.25537227,102940.0,102930.0,0.001]
[1747445999611,0.1942281,102930.0,102920.0,0.2913604]
[1747445999916,0.7428281,102930.0,102920.0,0.2427989]
[1747446000813,0.194247,102920.0,102910.0,0.00194335]
[1747446001005,1.25413017,102920.0,102910.0,0.01194335]
[1747446001211,1.43413017,102920.0,102910.0,0.01194335]
[1747446001406,1.42413017,102920.0,102910.0,0.00194335]
[1747446002106,1.42413017,102920.0,102910.0,0.00294335]
[1747446003212,1.42413017,102920.0,102910.0,0.00394335]
[1747446003615,1.351647,102920.0,102910.0,0.00394335]
[1747446004117,1.171647,102920.0,102910.0,0.00394335]
[1747446005119,1.351647,102920.0,102910.0,0.00394335]
[1747446005616,1.353647,102920.0,102910.0,0.00194335]
[1747446005919,1.355647,102920.0,102910.0,0.00194335]
[1747446006109,1.175647,102920.0,102910.0,0.00194335]
[1747446006416,1.175647,102920.0,102910.0,0.19620925]
[1747446006617,0.875647,102920.0,102910.0,0.26869242]
[1747446006814,0.631847,102920.0,102910.0,0.19620925]
[1747446007120,0.875567,102920.0,102910.0,0.19620925]
[1747446007419,0.271047,102920.0,102910.0,0.26869242]
[1747446007716,0.261047,102920.0,102910.0,0.69329242]
[1747446008107,0.504727,102920.0,102910.0,0.36329242]
[1747446008309,0.865527,102920.0,102910.0,0.29080925]
[1747446008604,0.863527,102920.0,102910.0,0.29080925]
[1747446008818,0.861527,102920.0,102910.0,0.29080925]
[1747446009120,0.862527,102920.0,102910.0,0.29080925]
[1747446009415,0.862527,102920.0,102910.0,0.36329242]
[1747446009416,0.0638,102920.0,102910.0,0.36329242]
[1747446009720,0.258047,102920.0,102910.0,0.66329242]
[1747446010317,0.258047,102920.0,102910.0,0.84329242]
[1747446010722,0.258047,102920.0,102910.0,0.84429242]
[1747446011817,0.0332,102920.0,102910.0,1.20509242]
[1747446012318,0.0322,102920.0,102910.0,1.20609242]
[1747446012920,0.0322,102920.0,102910.0,1.70609242]
[1747446013311,0.226447,102920.0,102910.0,1.70609242]
[1747446014615,0.0322,102920.0,102910.0,1.70609242]
[1747446014822,0.2729019,102930.0,102920.0,0.194247]
[1747446015016,0.2729019,102930.0,102920.0,0.68883017]
[1747446015321,0.2729019,102930.0,102920.0,0.86883017]
[1747446015819,0.0301,102930.0,102920.0,0.86883017]
[1747446016124,0.6348753,102940.0,102930.0,0.1942281]
[1747446016324,0.6348753,102940.0,102930.0,0.73111127]
[1747446016917,0.2740753,102940.0,102930.0,0.73111127]
[1747446017519,0.3048753,102940.0,102930.0,0.73111127]
[1747446018021,0.3068753,102940.0,102930.0,0.73111127]
[1747446018222,0.3068753,102940.0,102930.0,0.8386281]
[1747446018417,0.3068753,102940.0,102930.0,1.41111127]
[1747446018615,0.3088753,102940.0,102930.0,1.41111127]
[1747446019225,0.3088753,102940.0,102930.0,1.23111127]
[1747446020724,0.2290093,102940.0,102930.0,1.66439444]
[1747446021126,0.2290093,102940.0,102930.0,1.77191127]
[1747446021620,0.2290093,102940.0,102930.0,1.6994281]
[1747446021817,0.6203093,102940.0,102930.0,1.2786281]
[1747446022220,0.6203093,102940.0,102930.0,1.0986281]
[1747446022526,0.6203093,102940.0,102930.0,1.17111127]
[1747446022920,0.6203093,102940.0,102930.0,0.67111127]
[1747446023426,0.2595093,102940.0,102930.0,0.67111127]
[1747446023926,0.6203093,102940.0,102930.0,0.67111127]
[1747446024526,0.6203093,102940.0,102930.0,0.2886281]
[1747446024727,0.6403093,102940.0,102930.0,0.2243281]
[1747446024924,0.6716093,102940.0,102930.0,0.2243281]
[1747446025325,0.3108093,102940.0,102930.0,0.2243281]
[1747446025624,0.6716093,102940.0,102930.0,0.2243281]
[1747446027022,0.1942281,102930.0,102920.0,0.3566543]
[1747446027224,0.6167281,102930.0,102920.0,0.5498543]
[1747446027416,0.6167281,102930.0,102920.0,0.62233747]
[1747446027821,0.6167281,102930.0,102920.0,0.75233747]
[1747446028026,0.391,102930.0,102920.0,0.75233747]
[1747446028227,0.5852281,102930.0,102920.0,0.75233747]
[1747446028628,0.5862281,102930.0,102920.0,0.75233747]
[1747446029231,0.001,102930.0,102920.0,1.29313747]
[1747446029730,0.001,102930.0,102920.0,1.36562064]
[1747446030029,0.001,102930.0,102920.0,1.29313747]
[1747446030726,0.001,102930.0,102920.0,1.79313747]
[1747446031131,0.001,102930.0,102920.0,2.21003747]
[1747446032429,0.001,102930.0,102920.0,2.1375543]
[1747446032628,0.001,102930.0,102920.0,2.21003747]
[1747446035933,0.001,102930.0,102920.0,2.57083747]
[1747446038338,0.0343,102930.0,102920.0,2.57083747]
[1747446043526,0.0343,102930.0,102920.0,2.21003747]
[1747446046127,0.0343,102930.0,102920.0,2.28252064]
[1747446046630,0.0343,102930.0,102920.0,2.64332064]
[1747446047025,0.0343,102930.0,102920.0,2.57083747]
[1747446047234,0.0343,102930.0,102920.0,2.21003747]
[1747446047423,0.0655,102930.0,102920.0,2.21003747]
[1747446047634,0.2597281,102930.0,102920.0,2.14473747]
[1747446048034,0.2597281,102930.0,102920.0,1.78393747]
[1747446048234,0.2597281,102930.0,102920.0,1.60393747]
[1747446049335,0.2597281,102930.0,102920.0,1.63663747]
[1747446052138,0.2597281,102930.0,102920.0,1.21973747]
[1747446053841,0.2597281,102930.0,102920.0,1.1472543]
[1747446054139,0.2597281,102930.0,102920.0,1.15383747]
[1747446055042,0.2597281,102930.0,102920.0,1.18513747]
[1747446058142,0.2597281,102930.0,102920.0,1.15383747]
[1747446060145,0.2597281,102930.0,102920.0,1.54583747]
[1747446060440,0.2597281,102930.0,102920.0,1.57693747]
[1747446061444,0.2597281,102930.0,102920.0,1.5044543]
[1747446061649,0.2597281,102930.0,102920.0,1.57693747]
[1747446063643,0.6205281,102930.0,102920.0,0.7042355]
[1747446063839,0.6205281,102930.0,102920.0,0.5]
[1747446064033,1.01301127,102930.0,102920.0,0.5]
[1747446064237,1.19301127,102930.0,102920.0,0.5]
[1747446064949,0.194247,102920.0,102910.0,0.34189385]
[1747446065145,0.831547,102920.0,102910.0,0.34189385]
[1747446066442,0.831547,102920.0,102910.0,0.29332755]
[1747446066650,0.831547,102920.0,102910.0,0.24576125]